[Event "Titled Tuesday Blitz July 13 2021"]
[White "Tanenbaum, Zachary"]
[Black "Gallegos Diaz, Carlos Alberto"]
[WhiteFideId "2060850"]
[BlackFideId "3900886"]
[WhiteElo "2165"]
[BlackElo "2362"]
[Result "1-0"]
[Round "07"]
[TimeControl "180+1"]
[Date "2021.07.13"]
[WhiteClock "0:00:19"]
[BlackClock "0:00:24"]

1. e4 {[%clk 0:03:00]}  d6 {[%clk 0:02:59]} 2. d4 {[%clk 0:03:00]}  Nf6 {[%clk 0:02:59]} 3. Nc3 {[%clk 0:03:01]}  c6 {[%clk 0:02:59]} 4. Nf3 {[%clk 0:03:01]}  Qa5 {[%clk 0:02:59]} 5. Bd2 {[%clk 0:02:56]}  e5 {[%clk 0:02:59]} 6. dxe5 {[%clk 0:02:46]}  dxe5 {[%clk 0:03:00]} 7. Nd5 {[%clk 0:02:38]}  Qd8 {[%clk 0:02:59]} 8. Nxf6+ {[%clk 0:02:38]}  Qxf6 {[%clk 0:03:00]} 9. Bc4 {[%clk 0:02:37]}  Bd6 {[%clk 0:02:55]} 10. O-O {[%clk 0:02:09]}  O-O {[%clk 0:02:45]} 11. Qe2 {[%clk 0:02:04]}  b5 {[%clk 0:02:29]} 12. Bb3 {[%clk 0:02:03]}  a5 {[%clk 0:02:28]} 13. a4 {[%clk 0:02:01]}  Nd7 {[%clk 0:02:04]} 14. axb5 {[%clk 0:01:58]}  Nc5 {[%clk 0:02:04]} 15. Bc4 {[%clk 0:01:53]}  cxb5 {[%clk 0:01:59]} 16. Bxb5 {[%clk 0:01:54]}  Bb7 {[%clk 0:01:51]} 17. Bd3 {[%clk 0:01:40]}  Bc7 {[%clk 0:01:29]} 18. Bc3 {[%clk 0:01:32]}  Rfd8 {[%clk 0:01:19]} 19. Rfd1 {[%clk 0:01:31]}  a4 {[%clk 0:01:16]} 20. Bb4 {[%clk 0:01:23]}  Nxd3 {[%clk 0:01:16]} 21. cxd3 {[%clk 0:01:21]}  Bb6 {[%clk 0:01:14]} 22. Bc3 {[%clk 0:01:18]}  Re8 {[%clk 0:01:13]} 23. Nd2 {[%clk 0:01:02]}  Qg5 {[%clk 0:01:02]} 24. Nc4 {[%clk 0:01:00]}  Bc7 {[%clk 0:01:01]} 25. Rf1 {[%clk 0:00:58]}  Bc6 {[%clk 0:00:59]} 26. Kh1 {[%clk 0:00:52]}  Re6 {[%clk 0:00:57]} 27. Bd2 {[%clk 0:00:49]}  Qh4 {[%clk 0:00:56]} 28. Ne3 {[%clk 0:00:47]}  Rh6 {[%clk 0:00:51]} 29. h3 {[%clk 0:00:47]}  Rg6 {[%clk 0:00:48]} 30. Nf5 {[%clk 0:00:47]}  Qf6 {[%clk 0:00:44]} 31. f4 {[%clk 0:00:43]}  exf4 {[%clk 0:00:42]} 32. Bxf4 {[%clk 0:00:39]}  Bxf4 {[%clk 0:00:36]} 33. Rxf4 {[%clk 0:00:40]}  a3 {[%clk 0:00:32]} 34. Nh6+ {[%clk 0:00:39]}  Rxh6 {[%clk 0:00:30]} 35. Rxf6 {[%clk 0:00:40]}  Rxf6 {[%clk 0:00:30]} 36. Rxa3 {[%clk 0:00:39]}  Re8 {[%clk 0:00:30]} 37. Kh2 {[%clk 0:00:37]}  Rfe6 {[%clk 0:00:30]} 38. Ra7 {[%clk 0:00:33]}  f5 {[%clk 0:00:29]} 39. Qf2 {[%clk 0:00:32]}  Rf6 {[%clk 0:00:26]} 40. exf5 {[%clk 0:00:25]}  Rd8 {[%clk 0:00:25]} 41. Qg3 {[%clk 0:00:24]}  Bd7 {[%clk 0:00:24]} 42. Qc7 {[%clk 0:00:19]} 1-0


[Site "https://www.chess.com"]

[Event "Titled Tuesday Blitz July 13 2021"]
[White "Weetik, Vjacheslav"]
[Black "Prraneeth Vuppala"]
[WhiteFideId "4153472"]
[BlackFideId "46622373"]
[WhiteElo "2469"]
[BlackElo "1759"]
[Result "0-1"]
[Round "07"]
[TimeControl "180+1"]
[Date "2021.07.13"]
[WhiteClock "0:00:08"]
[BlackClock "0:00:10"]

1. d4 {[%clk 0:02:55]}  Nf6 {[%clk 0:02:59]} 2. Bf4 {[%clk 0:02:51]}  d5 {[%clk 0:02:57]} 3. e3 {[%clk 0:02:51]}  e6 {[%clk 0:02:57]} 4. Nd2 {[%clk 0:02:51]}  Bd6 {[%clk 0:02:57]} 5. c3 {[%clk 0:02:51]}  Bxf4 {[%clk 0:02:54]} 6. exf4 {[%clk 0:02:51]}  c5 {[%clk 0:02:46]} 7. dxc5 {[%clk 0:02:48]}  Qc7 {[%clk 0:02:44]} 8. Qf3 {[%clk 0:02:40]}  Qxc5 {[%clk 0:02:38]} 9. Bd3 {[%clk 0:02:38]}  b6 {[%clk 0:02:33]} 10. Ne2 {[%clk 0:02:29]}  Ba6 {[%clk 0:02:33]} 11. Bxa6 {[%clk 0:02:11]}  Nxa6 {[%clk 0:02:34]} 12. O-O {[%clk 0:02:06]}  Qc7 {[%clk 0:02:28]} 13. f5 {[%clk 0:01:35]}  O-O {[%clk 0:02:01]} 14. fxe6 {[%clk 0:01:28]}  fxe6 {[%clk 0:02:02]} 15. Qg3 {[%clk 0:01:20]}  e5 {[%clk 0:01:44]} 16. f4 {[%clk 0:01:10]}  e4 {[%clk 0:01:33]} 17. Nb3 {[%clk 0:01:08]}  Nc5 {[%clk 0:01:32]} 18. Nbd4 {[%clk 0:01:08]}  Rae8 {[%clk 0:01:29]} 19. Rad1 {[%clk 0:00:45]}  Nd3 {[%clk 0:01:27]} 20. Rd2 {[%clk 0:00:44]}  Nh5 {[%clk 0:01:21]} 21. Qg4 {[%clk 0:00:35]}  Nhxf4 {[%clk 0:01:12]} 22. Nxf4 {[%clk 0:00:35]}  Rxf4 {[%clk 0:01:05]} 23. Rxf4 {[%clk 0:00:33]}  Qxf4 {[%clk 0:00:56]} 24. Qxf4 {[%clk 0:00:28]}  Nxf4 {[%clk 0:00:57]} 25. g3 {[%clk 0:00:20]}  e3 {[%clk 0:00:52]} 26. Rd1 {[%clk 0:00:19]}  e2 {[%clk 0:00:25]} 27. Re1 {[%clk 0:00:19]}  Nd3 {[%clk 0:00:20]} 28. Rxe2 {[%clk 0:00:19]}  Rxe2 {[%clk 0:00:20]} 29. Nxe2 {[%clk 0:00:20]}  Nxb2 {[%clk 0:00:20]} 30. Kf2 {[%clk 0:00:21]}  Kf7 {[%clk 0:00:20]} 31. Ke3 {[%clk 0:00:21]}  Ke6 {[%clk 0:00:19]} 32. Kd4 {[%clk 0:00:22]}  Nc4 {[%clk 0:00:17]} 33. Nf4+ {[%clk 0:00:22]}  Kd6 {[%clk 0:00:16]} 34. Nxd5 {[%clk 0:00:23]}  Ne5 {[%clk 0:00:16]} 35. Ke4 {[%clk 0:00:13]}  Ng4 {[%clk 0:00:14]} 36. h4 {[%clk 0:00:13]}  Nf2+ {[%clk 0:00:13]} 37. Kd4 {[%clk 0:00:13]}  Nh1 {[%clk 0:00:12]} 38. g4 {[%clk 0:00:14]}  h6 {[%clk 0:00:12]} 39. Ne3 {[%clk 0:00:14]}  Ng3 {[%clk 0:00:11]} 40. Nf5+ {[%clk 0:00:09]}  Nxf5+ {[%clk 0:00:10]} 41. gxf5 {[%clk 0:00:10]}  h5 {[%clk 0:00:07]} 42. c4 {[%clk 0:00:08]}  a6 {[%clk 0:00:05]} 43. a4 {[%clk 0:00:08]}  a5 {[%clk 0:00:04]} 44. Ke4 {[%clk 0:00:03]}  Kc5 {[%clk 0:00:04]} 45. Ke5 {[%clk 0:00:03]}  Kxc4 {[%clk 0:00:04]} 46. Ke6 {[%clk 0:00:04]}  b5 {[%clk 0:00:04]} 47. Kf7 {[%clk 0:00:05]}  bxa4 {[%clk 0:00:04]} 48. Kxg7 {[%clk 0:00:05]}  a3 {[%clk 0:00:05]} 49. f6 {[%clk 0:00:06]}  a2 {[%clk 0:00:05]} 50. f7 {[%clk 0:00:07]}  a1=Q+ {[%clk 0:00:06]} 51. Kg8 {[%clk 0:00:05]}  Qf1 {[%clk 0:00:06]} 52. f8=Q {[%clk 0:00:05]}  Qxf8+ {[%clk 0:00:07]} 53. Kxf8 {[%clk 0:00:06]}  a4 {[%clk 0:00:07]} 54. Kg7 {[%clk 0:00:06]}  a3 {[%clk 0:00:08]} 55. Kh6 {[%clk 0:00:07]}  a2 {[%clk 0:00:09]} 56. Kxh5 {[%clk 0:00:08]}  a1=Q {[%clk 0:00:10]} 0-1


[Site "https://www.chess.com"]

[Event "Titled Tuesday Blitz July 13 2021"]
[White "Weinstein, Norman"]
[Black "David, Alexandru-Vasile"]
[WhiteFideId "2000466"]
[BlackFideId "1223453"]
[WhiteElo "2527"]
[BlackElo "2393"]
[Result "0-1"]
[Round "07"]
[TimeControl "180+1"]
[Date "2021.07.13"]
[WhiteClock "0:00:12"]
[BlackClock "0:00:34"]

1. e4 {[%clk 0:02:17]}  c5 {[%clk 0:02:58]} 2. Nf3 {[%clk 0:02:15]}  e6 {[%clk 0:02:58]} 3. Nc3 {[%clk 0:02:14]}  Nc6 {[%clk 0:02:58]} 4. g3 {[%clk 0:02:13]}  Nf6 {[%clk 0:02:51]} 5. Bg2 {[%clk 0:02:12]}  d5 {[%clk 0:02:43]} 6. exd5 {[%clk 0:02:10]}  exd5 {[%clk 0:02:44]} 7. d4 {[%clk 0:02:10]}  Bg4 {[%clk 0:02:43]} 8. Be3 {[%clk 0:02:08]}  cxd4 {[%clk 0:02:40]} 9. Bxd4 {[%clk 0:02:08]}  Be7 {[%clk 0:02:39]} 10. O-O {[%clk 0:01:59]}  O-O {[%clk 0:02:37]} 11. Bxf6 {[%clk 0:01:56]}  Bxf6 {[%clk 0:02:37]} 12. Nxd5 {[%clk 0:01:56]}  Ne5 {[%clk 0:02:11]} 13. h3 {[%clk 0:01:25]}  Nxf3+ {[%clk 0:02:02]} 14. Bxf3 {[%clk 0:01:25]}  Bxh3 {[%clk 0:02:02]} 15. Re1 {[%clk 0:01:24]}  Be6 {[%clk 0:01:59]} 16. c3 {[%clk 0:01:06]}  Rb8 {[%clk 0:01:59]} 17. Kg2 {[%clk 0:01:04]}  b5 {[%clk 0:01:53]} 18. Nxf6+ {[%clk 0:01:02]}  Qxf6 {[%clk 0:01:53]} 19. Qe2 {[%clk 0:00:57]}  Rfc8 {[%clk 0:01:47]} 20. Qe5 {[%clk 0:00:56]}  Qxe5 {[%clk 0:01:46]} 21. Rxe5 {[%clk 0:00:56]}  b4 {[%clk 0:01:47]} 22. cxb4 {[%clk 0:00:55]}  Rxb4 {[%clk 0:01:48]} 23. b3 {[%clk 0:00:55]}  g6 {[%clk 0:01:44]} 24. Ra5 {[%clk 0:00:52]}  Rc7 {[%clk 0:01:44]} 25. Re1 {[%clk 0:00:52]}  h5 {[%clk 0:01:41]} 26. Re4 {[%clk 0:00:48]}  Rxe4 {[%clk 0:01:27]} 27. Bxe4 {[%clk 0:00:48]}  Kf8 {[%clk 0:01:28]} 28. Bd5 {[%clk 0:00:48]}  Bg4 {[%clk 0:01:27]} 29. Bc4 {[%clk 0:00:42]}  Ke7 {[%clk 0:01:25]} 30. Re5+ {[%clk 0:00:41]}  Kf6 {[%clk 0:01:25]} 31. Ra5 {[%clk 0:00:41]}  Ke7 {[%clk 0:01:22]} 32. f3 {[%clk 0:00:40]}  Bd7 {[%clk 0:01:15]} 33. Kf2 {[%clk 0:00:39]}  f6 {[%clk 0:01:15]} 34. f4 {[%clk 0:00:37]}  Bc6 {[%clk 0:01:10]} 35. Ke3 {[%clk 0:00:36]}  Ba8 {[%clk 0:01:03]} 36. Bd3 {[%clk 0:00:35]}  Kf7 {[%clk 0:00:52]} 37. Bc4+ {[%clk 0:00:30]}  Ke7 {[%clk 0:00:52]} 38. Ra6 {[%clk 0:00:30]}  Bc6 {[%clk 0:00:50]} 39. Kd4 {[%clk 0:00:28]}  g5 {[%clk 0:00:50]} 40. fxg5 {[%clk 0:00:26]}  fxg5 {[%clk 0:00:51]} 41. Ra5 {[%clk 0:00:26]}  Kf6 {[%clk 0:00:49]} 42. Be2 {[%clk 0:00:23]}  Be8 {[%clk 0:00:42]} 43. Kd5 {[%clk 0:00:19]}  Rd7+ {[%clk 0:00:40]} 44. Kc5 {[%clk 0:00:18]}  h4 {[%clk 0:00:38]} 45. gxh4 {[%clk 0:00:17]}  gxh4 {[%clk 0:00:39]} 46. Bg4 {[%clk 0:00:17]}  Re7 {[%clk 0:00:37]} 47. Kb4 {[%clk 0:00:14]}  Re4+ {[%clk 0:00:36]} 48. Ka3 {[%clk 0:00:13]}  Rxg4 {[%clk 0:00:37]} 49. Ra6+ {[%clk 0:00:14]}  Kg5 {[%clk 0:00:33]} 50. Rxa7 {[%clk 0:00:14]}  h3 {[%clk 0:00:34]} 51. Rg7+ {[%clk 0:00:13]}  Bg6 {[%clk 0:00:34]} 52. Rg8 {[%clk 0:00:12]}  h2 {[%clk 0:00:33]} 53. Rh8 {[%clk 0:00:12]}  Bh5 {[%clk 0:00:33]} 54. Rg8+ {[%clk 0:00:12]}  Kh4 {[%clk 0:00:34]} 0-1


[Site "https://www.chess.com"]

[Event "Titled Tuesday Blitz July 13 2021"]
[White "Wong, Yinn Long"]
[Black "Flores Quillas, Diego Saul Rodri"]
[WhiteFideId "5707684"]
[BlackFideId "3822508"]
[WhiteElo "2016"]
[BlackElo "2071"]
[Result "1-0"]
[Round "07"]
[TimeControl "180+1"]
[Date "2021.07.13"]
[WhiteClock "0:01:31"]
[BlackClock "0:01:53"]

1. e4 {[%clk 0:03:00]}  c5 {[%clk 0:02:57]} 2. Nf3 {[%clk 0:03:00]}  e6 {[%clk 0:02:53]} 3. g3 {[%clk 0:03:00]}  Nc6 {[%clk 0:02:52]} 4. Bg2 {[%clk 0:03:00]}  d5 {[%clk 0:02:51]} 5. exd5 {[%clk 0:02:56]}  exd5 {[%clk 0:02:52]} 6. d4 {[%clk 0:02:56]}  cxd4 {[%clk 0:02:47]} 7. O-O {[%clk 0:02:55]}  Bc5 {[%clk 0:02:47]} 8. Nbd2 {[%clk 0:02:49]}  Nge7 {[%clk 0:02:48]} 9. Nb3 {[%clk 0:02:49]}  Bb6 {[%clk 0:02:46]} 10. Nfxd4 {[%clk 0:02:50]}  O-O {[%clk 0:02:45]} 11. c3 {[%clk 0:02:50]}  Nxd4 {[%clk 0:02:41]} 12. Nxd4 {[%clk 0:02:50]}  Nc6 {[%clk 0:02:41]} 13. Be3 {[%clk 0:02:45]}  Be6 {[%clk 0:02:36]} 14. Re1 {[%clk 0:02:40]}  Qd7 {[%clk 0:02:29]} 15. Nxe6 {[%clk 0:02:32]}  fxe6 {[%clk 0:02:23]} 16. Bxb6 {[%clk 0:02:32]}  axb6 {[%clk 0:02:24]} 17. Rxe6 {[%clk 0:02:32]}  Qxe6 {[%clk 0:02:13]} 18. Bxd5 {[%clk 0:02:32]}  Rae8 {[%clk 0:02:13]} 19. Bxe6+ {[%clk 0:02:17]}  Rxe6 {[%clk 0:02:14]} 20. Qd5 {[%clk 0:02:17]}  Re8 {[%clk 0:02:11]} 21. Re1 {[%clk 0:02:15]}  Kf7 {[%clk 0:02:11]} 22. Qf5+ {[%clk 0:01:46]}  Rf6 {[%clk 0:02:05]} 23. Qd7+ {[%clk 0:01:38]}  Re7 {[%clk 0:02:03]} 24. Rxe7+ {[%clk 0:01:39]}  Nxe7 {[%clk 0:02:04]} 25. Qxb7 {[%clk 0:01:39]}  Re6 {[%clk 0:02:03]} 26. a4 {[%clk 0:01:38]}  h5 {[%clk 0:01:59]} 27. h4 {[%clk 0:01:36]}  Kg6 {[%clk 0:01:58]} 28. b4 {[%clk 0:01:35]}  Nf5 {[%clk 0:01:54]} 29. a5 {[%clk 0:01:33]}  bxa5 {[%clk 0:01:55]} 30. bxa5 {[%clk 0:01:34]}  Re1+ {[%clk 0:01:53]} 31. Kg2 {[%clk 0:01:33]}  Re2 {[%clk 0:01:53]} 32. Qa6+ {[%clk 0:01:31]} 1-0


[Site "https://www.chess.com"]

[Event "Titled Tuesday Blitz July 13 2021"]
[White "Zong, Davis"]
[Black "Dobrowolski, Piotr"]
[WhiteFideId "30903955"]
[BlackFideId "1106236"]
[WhiteElo "2406"]
[BlackElo "2304"]
[Result "0-1"]
[Round "07"]
[TimeControl "180+1"]
[Date "2021.07.13"]
[WhiteClock "0:00:02"]
[BlackClock "0:00:56"]

1. d4 {[%clk 0:03:00]}  e6 {[%clk 0:02:58]} 2. c4 {[%clk 0:03:00]}  c5 {[%clk 0:02:59]} 3. d5 {[%clk 0:03:00]}  exd5 {[%clk 0:02:59]} 4. cxd5 {[%clk 0:03:00]}  d6 {[%clk 0:03:00]} 5. Nc3 {[%clk 0:03:00]}  g6 {[%clk 0:03:00]} 6. e4 {[%clk 0:03:00]}  Bg7 {[%clk 0:03:00]} 7. Nf3 {[%clk 0:03:00]}  a6 {[%clk 0:02:59]} 8. a4 {[%clk 0:02:59]}  Bg4 {[%clk 0:02:59]} 9. h3 {[%clk 0:02:57]}  Bxf3 {[%clk 0:02:59]} 10. Qxf3 {[%clk 0:02:57]}  Nd7 {[%clk 0:02:58]} 11. Bf4 {[%clk 0:02:57]}  Ne5 {[%clk 0:02:57]} 12. Qg3 {[%clk 0:02:57]}  Nf6 {[%clk 0:02:43]} 13. Bxe5 {[%clk 0:02:30]}  Nh5 {[%clk 0:02:43]} 14. Bxg7 {[%clk 0:02:24]}  Nxg3 {[%clk 0:02:43]} 15. fxg3 {[%clk 0:02:23]}  Rg8 {[%clk 0:02:43]} 16. Bh6 {[%clk 0:02:22]}  Qb6 {[%clk 0:02:23]} 17. Rb1 {[%clk 0:02:20]}  g5 {[%clk 0:02:13]} 18. h4 {[%clk 0:02:19]}  f6 {[%clk 0:02:14]} 19. Bd3 {[%clk 0:02:07]}  c4 {[%clk 0:02:13]} 20. Bxc4 {[%clk 0:01:45]}  Rc8 {[%clk 0:02:12]} 21. b3 {[%clk 0:01:33]}  Qe3+ {[%clk 0:02:05]} 22. Ne2 {[%clk 0:01:32]}  Qxe4 {[%clk 0:02:00]} 23. Rd1 {[%clk 0:01:22]}  Qxg2 {[%clk 0:01:54]} 24. Kd2 {[%clk 0:01:09]}  Qe4 {[%clk 0:01:46]} 25. Rde1 {[%clk 0:01:00]}  Kd8 {[%clk 0:01:42]} 26. Nc3 {[%clk 0:00:42]}  Qd4+ {[%clk 0:01:35]} 27. Kc2 {[%clk 0:00:42]}  b5 {[%clk 0:01:27]} 28. axb5 {[%clk 0:00:43]}  axb5 {[%clk 0:01:27]} 29. Nxb5 {[%clk 0:00:42]}  Qf2+ {[%clk 0:01:17]} 30. Kb1 {[%clk 0:00:31]}  gxh4 {[%clk 0:01:17]} 31. Nxd6 {[%clk 0:00:17]}  Ra8 {[%clk 0:01:10]} 32. Re2 {[%clk 0:00:15]}  Qd4 {[%clk 0:01:03]} 33. Nf7+ {[%clk 0:00:08]}  Kc8 {[%clk 0:01:01]} 34. Nd6+ {[%clk 0:00:04]}  Kb8 {[%clk 0:01:00]} 35. Rb2 {[%clk 0:00:02]}  hxg3 {[%clk 0:00:56]} 0-1


[Site "https://www.chess.com"]

[Event "Titled Tuesday Blitz July 13 2021"]
[White "Zubritskiy, Artyom"]
[Black "Pastar, Slaven"]
[WhiteFideId "4181247"]
[BlackFideId "14402718"]
[WhiteElo "2559"]
[BlackElo "2150"]
[Result "1-0"]
[Round "07"]
[TimeControl "180+1"]
[Date "2021.07.13"]
[WhiteClock "0:00:35"]
[BlackClock "0:00:47"]

1. c4 {[%clk 0:03:00]}  b6 {[%clk 0:03:00]} 2. Nc3 {[%clk 0:03:00]}  Bb7 {[%clk 0:03:01]} 3. e4 {[%clk 0:03:00]}  g6 {[%clk 0:03:01]} 4. Nge2 {[%clk 0:02:59]}  Bg7 {[%clk 0:03:01]} 5. g3 {[%clk 0:02:56]}  f5 {[%clk 0:02:55]} 6. d3 {[%clk 0:02:56]}  fxe4 {[%clk 0:02:53]} 7. dxe4 {[%clk 0:02:55]}  Nf6 {[%clk 0:02:45]} 8. Bg2 {[%clk 0:02:53]}  O-O {[%clk 0:02:44]} 9. O-O {[%clk 0:02:52]}  e5 {[%clk 0:02:44]} 10. h3 {[%clk 0:02:14]}  d6 {[%clk 0:02:44]} 11. Be3 {[%clk 0:02:13]}  a6 {[%clk 0:02:38]} 12. b4 {[%clk 0:02:05]}  c5 {[%clk 0:02:12]} 13. Rb1 {[%clk 0:01:54]}  Qc7 {[%clk 0:01:58]} 14. b5 {[%clk 0:01:11]}  a5 {[%clk 0:01:46]} 15. Qd3 {[%clk 0:01:02]}  Bc8 {[%clk 0:01:39]} 16. f4 {[%clk 0:00:55]}  Be6 {[%clk 0:01:35]} 17. f5 {[%clk 0:00:53]}  Bf7 {[%clk 0:01:29]} 18. g4 {[%clk 0:00:53]}  a4 {[%clk 0:01:13]} 19. g5 {[%clk 0:00:36]}  Nh5 {[%clk 0:01:09]} 20. f6 {[%clk 0:00:36]}  Bh8 {[%clk 0:01:09]} 21. Nd5 {[%clk 0:00:35]}  Bxd5 {[%clk 0:00:47]} 22. Qxd5+ {[%clk 0:00:35]}  Qf7 {[%clk 0:00:47]} 23. Qxa8 {[%clk 0:00:35]} 1-0


[Site "https://www.chess.com"]

[Event "Titled Tuesday Blitz July 13 2021"]
[White "deribas12345"]
[Black "Tronenkovs, Valdis"]
[BlackFideId "11601558"]
[WhiteElo "2510"]
[BlackElo "2232"]
[Result "1-0"]
[Round "07"]
[TimeControl "180+1"]
[Date "2021.07.13"]
[WhiteClock "0:00:33"]
[BlackClock "0:00:01"]

1. d4 {[%clk 0:02:38]}  Nf6 {[%clk 0:02:58]} 2. c4 {[%clk 0:02:38]}  e6 {[%clk 0:02:58]} 3. Nc3 {[%clk 0:02:38]}  d5 {[%clk 0:02:59]} 4. cxd5 {[%clk 0:02:38]}  exd5 {[%clk 0:03:00]} 5. Bg5 {[%clk 0:02:38]}  Be7 {[%clk 0:03:00]} 6. e3 {[%clk 0:02:38]}  h6 {[%clk 0:03:00]} 7. Bh4 {[%clk 0:02:37]}  O-O {[%clk 0:03:00]} 8. Bd3 {[%clk 0:02:38]}  c6 {[%clk 0:03:00]} 9. Qc2 {[%clk 0:02:38]}  Re8 {[%clk 0:03:00]} 10. Nge2 {[%clk 0:02:38]}  Nbd7 {[%clk 0:02:58]} 11. O-O {[%clk 0:02:38]}  Ne4 {[%clk 0:02:58]} 12. Bxe7 {[%clk 0:02:37]}  Qxe7 {[%clk 0:02:59]} 13. Rae1 {[%clk 0:02:37]}  Ndf6 {[%clk 0:02:52]} 14. f3 {[%clk 0:02:37]}  Nxc3 {[%clk 0:02:46]} 15. Nxc3 {[%clk 0:02:38]}  Be6 {[%clk 0:02:20]} 16. e4 {[%clk 0:02:32]}  dxe4 {[%clk 0:02:20]} 17. fxe4 {[%clk 0:02:33]}  Rad8 {[%clk 0:01:48]} 18. e5 {[%clk 0:02:28]}  Nd5 {[%clk 0:01:43]} 19. Ne4 {[%clk 0:02:02]}  Nb4 {[%clk 0:01:10]} 20. Qd2 {[%clk 0:02:01]}  Nxd3 {[%clk 0:01:09]} 21. Qxd3 {[%clk 0:02:01]}  Qb4 {[%clk 0:01:01]} 22. Nd6 {[%clk 0:01:56]}  Re7 {[%clk 0:00:23]} 23. b3 {[%clk 0:01:55]}  Bd5 {[%clk 0:00:15]} 24. Nf5 {[%clk 0:01:49]}  Re6 {[%clk 0:00:10]} 25. Re3 {[%clk 0:01:24]}  c5 {[%clk 0:00:10]} 26. Rg3 {[%clk 0:01:21]}  cxd4 {[%clk 0:00:03]} 27. Rxg7+ {[%clk 0:01:12]}  Kf8 {[%clk 0:00:04]} 28. Rh7 {[%clk 0:00:59]}  Ke8 {[%clk 0:00:03]} 29. Ng7+ {[%clk 0:00:50]}  Kd7 {[%clk 0:00:02]} 30. Rxf7+ {[%clk 0:00:37]}  Kc6 {[%clk 0:00:01]} 31. Nxe6 {[%clk 0:00:35]}  Bxe6 {[%clk 0:00:01]} 32. Rc7+ {[%clk 0:00:33]}  Kb6 {[%clk 0:00:01]} 33. Rxb7+ {[%clk 0:00:33]} 1-0


[Site "https://www.chess.com"]

[Event "Titled Tuesday Blitz July 13 2021"]
[White "shnitez"]
[Black "Sellitti, Federico"]
[BlackFideId "821829"]
[WhiteElo "2459"]
[BlackElo "2596"]
[Result "0-1"]
[Round "07"]
[TimeControl "180+1"]
[Date "2021.07.13"]
[WhiteClock "0:00:01"]
[BlackClock "0:00:05"]

1. c4 {[%clk 0:03:00]}  c5 {[%clk 0:03:00]} 2. Nc3 {[%clk 0:03:00]}  Nc6 {[%clk 0:03:00]} 3. Nf3 {[%clk 0:03:00]}  Nf6 {[%clk 0:03:01]} 4. d4 {[%clk 0:02:55]}  cxd4 {[%clk 0:03:02]} 5. Nxd4 {[%clk 0:02:56]}  g6 {[%clk 0:03:02]} 6. e4 {[%clk 0:02:56]}  Bg7 {[%clk 0:02:58]} 7. Be3 {[%clk 0:02:55]}  d6 {[%clk 0:02:51]} 8. Be2 {[%clk 0:02:54]}  O-O {[%clk 0:02:50]} 9. O-O {[%clk 0:02:54]}  a5 {[%clk 0:02:46]} 10. Ndb5 {[%clk 0:02:53]}  Bd7 {[%clk 0:02:41]} 11. Rc1 {[%clk 0:02:49]}  Rc8 {[%clk 0:02:31]} 12. b3 {[%clk 0:02:43]}  h5 {[%clk 0:02:29]} 13. h3 {[%clk 0:02:42]}  Nh7 {[%clk 0:01:54]} 14. Nd5 {[%clk 0:02:31]}  f5 {[%clk 0:01:42]} 15. exf5 {[%clk 0:02:21]}  Bxf5 {[%clk 0:01:43]} 16. Qd2 {[%clk 0:01:52]}  Qe8 {[%clk 0:01:35]} 17. Bd3 {[%clk 0:01:40]}  Qf7 {[%clk 0:01:11]} 18. Bxf5 {[%clk 0:01:37]}  gxf5 {[%clk 0:01:12]} 19. f4 {[%clk 0:01:33]}  Nf6 {[%clk 0:01:08]} 20. Nxf6+ {[%clk 0:01:27]}  Bxf6 {[%clk 0:01:05]} 21. Rfe1 {[%clk 0:01:09]}  Kh8 {[%clk 0:01:04]} 22. Nd4 {[%clk 0:00:59]}  Nxd4 {[%clk 0:00:55]} 23. Bxd4 {[%clk 0:00:59]}  Rg8 {[%clk 0:00:55]} 24. Bxf6+ {[%clk 0:00:57]}  Qxf6 {[%clk 0:00:56]} 25. Re2 {[%clk 0:00:52]}  Rg3 {[%clk 0:00:49]} 26. Rce1 {[%clk 0:00:48]}  Rcg8 {[%clk 0:00:05]} 27. Rd1 {[%clk 0:00:23]}  Qh4 {[%clk 0:00:03]} 28. Kh2 {[%clk 0:00:16]}  Rxh3+ {[%clk 0:00:02]} 29. gxh3 {[%clk 0:00:16]}  Qg3+ {[%clk 0:00:02]} 30. Kh1 {[%clk 0:00:17]}  Qxh3+ {[%clk 0:00:02]} 31. Rh2 {[%clk 0:00:17]}  Qf3+ {[%clk 0:00:03]} 32. Rg2 {[%clk 0:00:16]}  h4 {[%clk 0:00:02]} 33. Kh2 {[%clk 0:00:10]}  Rxg2+ {[%clk 0:00:01]} 34. Qxg2 {[%clk 0:00:11]}  Qxd1 {[%clk 0:00:01]} 35. Qg5 {[%clk 0:00:09]}  Qg4 {[%clk 0:00:02]} 36. Qxe7 {[%clk 0:00:05]}  Qg3+ {[%clk 0:00:02]} 37. Kh1 {[%clk 0:00:05]}  h3 {[%clk 0:00:03]} 38. Qf8+ {[%clk 0:00:04]}  Kh7 {[%clk 0:00:03]} 39. Qxf5+ {[%clk 0:00:03]}  Kh6 {[%clk 0:00:03]} 40. Qf6+ {[%clk 0:00:03]}  Kh5 {[%clk 0:00:03]} 41. Qh8+ {[%clk 0:00:02]}  Kg4 {[%clk 0:00:03]} 42. Qg7+ {[%clk 0:00:03]}  Kxf4 {[%clk 0:00:04]} 43. Qf6+ {[%clk 0:00:01]}  Ke3 {[%clk 0:00:03]} 44. Qe6+ {[%clk 0:00:01]}  Kf2 {[%clk 0:00:04]} 45. Qf5+ {[%clk 0:00:01]}  Qf3+ {[%clk 0:00:04]} 46. Qxf3+ {[%clk 0:00:02]}  Kxf3 {[%clk 0:00:05]} 47. b4 {[%clk 0:00:01]}  axb4 {[%clk 0:00:05]} 0-1


[Site "https://www.chess.com"]